fUSD/lending_fUSD_20240426
["ID","MTS","AMOUNT","RATE_DAILY","PERIOD"]
[323699095,1714167066064,-2709.84,0.00012876,2]
[323699096,1714167066074,-500.0,0.00012876,2]
[323699097,1714167066084,-500.0,0.00012876,2]
[323699098,1714167066093,-500.0,0.00012876,2]
[323699099,1714167066103,-3874.03,0.00012876,2]
[323699100,1714167066113,-500.0,0.00012876,2]
[323699101,1714167066122,-3510.07,0.00012876,2]
[323699102,1714167066132,-780.74,0.00012876,2]
[323699103,1714167066142,-500.0,0.00012876,2]
[323699104,1714167066152,-503.9,0.00012876,2]
[323699105,1714167066161,-500.0,0.00012876,2]
[323699106,1714167066171,-500.0,0.00012876,2]
[323699107,1714167066181,-579.45,0.00012876,2]
[323699108,1714167066191,-469.91693994,0.00013,2]
[323699109,1714167066201,-515.0,0.00013013,2]
[323699110,1714167066210,-400.0,0.0001315,2]
[323699111,1714167066221,-235.94,0.0001315,2]
[323699112,1714167066231,-256.73,0.0001315,2]
[323699113,1714167066241,-500.0,0.0001315,2]
[323699114,1714167066251,-846.17,0.0001315,2]
[323699115,1714167066260,-637.18,0.0001315,2]
[323699116,1714167066271,-500.0,0.0001315,2]
[323699117,1714167066281,-621.58071404,0.0001315,2]
[323699118,1714167066292,-1347.92,0.0001315,2]
[323699119,1714167066302,-150.0,0.0001315,2]
[323699120,1714167066312,-500.0,0.0001315,2]
[323699121,1714167066322,-562.11,0.0001315,2]
[323699122,1714167066332,-500.0,0.0001315,2]
[323699123,1714167066342,-500.0,0.0001315,2]
[323699124,1714167066351,-500.0,0.0001315,2]
[323699125,1714167066362,-500.0,0.0001315,2]
[323699126,1714167066372,-500.0,0.0001315,2]
[323699127,1714167066383,-500.0,0.0001315,2]
[323699128,1714167066394,-500.0,0.0001315,2]
[323699129,1714167066404,-287.5,0.0001315,2]
[323699130,1714167066415,-500.0,0.0001315,2]
[323699131,1714167066425,-500.0,0.0001315,2]
[323699132,1714167066434,-500.0,0.0001315,2]
[323699133,1714167066444,-297.88,0.0001315,2]
[323699134,1714167066454,-500.0,0.0001315,2]
[323699135,1714167066464,-500.0,0.0001315,2]
[323699136,1714167066473,-1773.63,0.0001315,2]
[323699137,1714167066484,-500.0,0.0001315,2]
[323699138,1714167066494,-1226.85,0.0001315,2]
[323699139,1714167066503,-624.49386954,0.0001315,2]
[323699140,1714167066513,-2547.19,0.0001315,2]
[323699141,1714167066522,-500.0,0.0001315,2]
[323699142,1714167066532,-544.6,0.0001315,2]
[323699143,1714167066542,-500.0,0.0001315,2]
[323699144,1714167066552,-500.0,0.0001315,2]
[323699145,1714167066564,-2525.7,0.0001315,2]
[323699146,1714167066573,-500.0,0.0001315,2]
[323699147,1714167066582,-1601.33,0.0001315,2]
[323699148,1714167066592,-500.0,0.0001315,2]
[323699149,1714167066601,-1046.8,0.0001315,2]
[323699150,1714167066610,-152.66,0.0001315,2]
[323699151,1714167066619,-500.0,0.0001315,2]
[323699152,1714167066628,-345.5,0.0001315,2]
[323699153,1714167066638,-2439.87,0.0001315,2]
[323699154,1714167066647,-507.38,0.0001315,2]
[323699155,1714167066657,-611.96,0.0001315,2]
[323699156,1714167066671,-910.02,0.0001315,2]
[323699157,1714167066681,-409.12,0.0001315,2]
[323699158,1714167066691,-500.0,0.0001315,2]
[323699159,1714167066700,-500.0,0.0001315,2]
[323699160,1714167066711,-500.0,0.0001315,2]
[323699161,1714167066720,-1026.19,0.0001315,2]
[323699162,1714167066730,-500.0,0.0001315,2]
[323699163,1714167066740,-936.26,0.0001315,2]
[323699164,1714167066750,-3948.29,0.0001315,2]
[323699165,1714167066760,-500.0,0.0001315,2]
[323699166,1714167066769,-3479.09,0.0001315,2]
[323699167,1714167066779,-500.0,0.0001315,2]
[323699168,1714167066789,-500.0,0.0001315,2]
[323699169,1714167066798,-506.65,0.0001315,2]
[323699170,1714167066807,-500.0,0.0001315,2]
[323699171,1714167066817,-500.0,0.0001315,2]
[323699172,1714167066827,-854.81,0.0001315,2]
[323699173,1714167066837,-844.75,0.0001315,2]
[323699174,1714167066847,-500.0,0.0001315,2]
[323699175,1714167066857,-728.65,0.0001315,2]
[323699176,1714167066866,-500.0,0.0001315,2]
[323699177,1714167066876,-2110.77,0.0001315,2]
[323699178,1714167066885,-940.7,0.0001315,2]
[323699179,1714167066894,-500.0,0.0001315,2]
[323699180,1714167066904,-500.0,0.0001315,2]
[323699181,1714167066914,-500.0,0.0001315,2]
[323699182,1714167066923,-500.0,0.0001315,2]
[323699183,1714167066932,-550.23,0.0001315,2]
[323699184,1714167066942,-3618.21,0.0001315,2]
[323699185,1714167066951,-500.0,0.0001315,2]
[323699186,1714167066960,-500.0,0.0001315,2]
[323699187,1714167066970,-500.0,0.0001315,2]
[323699188,1714167066979,-500.0,0.0001315,2]
[323699189,1714167066990,-500.0,0.0001315,2]
[323699190,1714167067000,-500.0,0.0001315,2]
[323699191,1714167067009,-1085.71,0.0001315,2]
[323699192,1714167067019,-257.09933342,0.0001315,2]
[323699193,1714167067028,-500.0,0.0001315,2]
[323699194,1714167067038,-2709.84,0.0001315,2]
[323699195,1714167067048,-500.0,0.0001315,2]
[323699196,1714167067057,-618.61628309,0.0001315,2]
[323699197,1714167067067,-500.0,0.0001315,2]
[323699198,1714167067076,-3874.03,0.0001315,2]
[323699199,1714167067086,-500.0,0.0001315,2]
[323699200,1714167067096,-3510.07,0.0001315,2]
[323699201,1714167067105,-780.74,0.0001315,2]
[323699202,1714167067115,-500.0,0.0001315,2]
[323699203,1714167067124,-500.0,0.0001315,2]
[323699204,1714167067134,-292.76,0.0001315,2]
[323699205,1714167067144,-579.45,0.0001315,2]
[323699206,1714167067154,-233.03,0.00013151,2]
[323699207,1714167067163,-572.14,0.00013151,2]
[323699208,1714167067174,-476.78,0.00013151,2]
[323699209,1714167067183,-397.32,0.00013151,2]
[323699210,1714167067199,-331.1,0.00013151,2]
[323699211,1714167067218,-275.91,0.00013151,2]
[323699212,1714167067228,-229.93,0.00013151,2]
[323699213,1714167067238,-191.61,0.00013151,2]
[323699214,1714167067247,-159.67,0.00013151,2]
[323699215,1714167067256,-798.39,0.00013151,2]
[323699216,1714167067267,-2338.87,0.0001337,10]
[323699217,1714167067277,-189.95,0.00013424,2]
[323699218,1714167067287,-846.17,0.00013424,2]
[323699219,1714167067296,-329.26,0.00013424,2]
[323699220,1714167067306,-1347.92,0.00013424,2]
[323699221,1714167067315,-150.0,0.00013424,2]
[323699222,1714167067324,-500.0,0.00013424,2]
[323699223,1714167067333,-562.11,0.00013424,2]
[323699224,1714167067343,-500.0,0.00013424,2]
[323699225,1714167067352,-198.34,0.00013424,2]
[323699226,1714167067362,-500.0,0.00013424,2]
[323699227,1714167067371,-605.48,0.00013424,2]
[323699228,1714167067380,-500.0,0.00013424,2]
[323699229,1714167067392,-500.0,0.00013424,2]
[323699230,1714167067402,-500.0,0.00013424,2]
[323699231,1714167067411,-500.0,0.00013424,2]
[323699232,1714167067420,-500.0,0.00013424,2]
[323699233,1714167067430,-500.0,0.00013424,2]
[323699234,1714167067439,-500.0,0.00013424,2]
[323699235,1714167067448,-198.52,0.00013424,2]
[323699236,1714167067457,-1773.63,0.00013424,2]
[323699237,1714167067467,-166.6,0.00013424,2]
[323699238,1714167067477,-1226.85,0.00013424,2]
[323699239,1714167067486,-2547.19,0.00013424,2]
[323699240,1714167067495,-500.0,0.00013424,2]
[323699241,1714167067505,-500.0,0.00013424,2]
[323699242,1714167067514,-500.0,0.00013424,2]
[323699243,1714167067523,-2525.7,0.00013424,2]
[323699244,1714167067532,-500.0,0.00013424,2]
[323699245,1714167067542,-1601.33,0.00013424,2]
[323699246,1714167067551,-500.0,0.00013424,2]
[323699247,1714167067560,-1046.8,0.00013424,2]
[323699248,1714167067569,-2439.87,0.00013424,2]
[323699249,1714167067578,-507.38,0.00013424,2]
[323699250,1714167067587,-910.02,0.00013424,2]
[323699251,1714167067597,-572.7,0.00013424,2]
[323699252,1714167067606,-500.0,0.00013424,2]
[323699253,1714167067615,-500.0,0.00013424,2]
[323699254,1714167067625,-1026.19,0.00013424,2]
[323699255,1714167067635,-500.0,0.00013424,2]
[323699256,1714167067644,-936.26,0.00013424,2]
[323699257,1714167067653,-3948.29,0.00013424,2]
[323699258,1714167067663,-500.0,0.00013424,2]
[323699259,1714167067674,-3479.09,0.00013424,2]
[323699260,1714167067684,-500.0,0.00013424,2]
[323699261,1714167067694,-500.0,0.00013424,2]
[323699262,1714167067703,-506.65,0.00013424,2]
[323699263,1714167067712,-463.7,0.00013424,2]
[323699264,1714167067722,-500.0,0.00013424,2]
[323699265,1714167067732,-854.81,0.00013424,2]
[323699266,1714167067741,-844.75,0.00013424,2]
[323699267,1714167067751,-500.0,0.00013424,2]
[323699268,1714167067761,-728.65,0.00013424,2]
[323699269,1714167067771,-500.0,0.00013424,2]
[323699270,1714167067781,-2110.77,0.00013424,2]
[323699271,1714167067790,-940.7,0.00013424,2]
[323699272,1714167067799,-503.95,0.00013424,2]
[323699273,1714167067810,-500.0,0.00013424,2]
[323699274,1714167067819,-500.0,0.00013424,2]
[323699275,1714167067829,-500.0,0.00013424,2]
[323699276,1714167067839,-3618.21,0.00013424,2]
[323699277,1714167067848,-500.0,0.00013424,2]
[323699278,1714167067858,-500.0,0.00013424,2]
[323699279,1714167067867,-500.0,0.00013424,2]
[323699280,1714167067877,-298.48,0.00013424,2]
[323699281,1714167067886,-500.0,0.00013424,2]
[323699282,1714167067897,-500.0,0.00013424,2]
[323699283,1714167067906,-1085.71,0.00013424,2]
[323699284,1714167067915,-500.0,0.00013424,2]
[323699285,1714167067924,-2709.84,0.00013424,2]
[323699286,1714167067933,-500.0,0.00013424,2]
[323699287,1714167067942,-500.0,0.00013424,2]
[323699288,1714167067952,-3874.03,0.00013424,2]
[323699289,1714167067968,-500.0,0.00013424,2]
[323699290,1714167067977,-3510.07,0.00013424,2]
[323699291,1714167067986,-780.74,0.00013424,2]
[323699292,1714167067997,-500.0,0.00013424,2]
[323699293,1714167068006,-500.0,0.00013424,2]
[323699294,1714167068015,-579.45,0.00013424,2]
[323699295,1714167068024,-10085.69,0.00013425,2]
[323699296,1714167068034,-500.0,0.00013476,2]
[323699297,1714167068043,-500.0,0.00013485,2]
[323699298,1714167068052,-500.0,0.00013493,2]
[323699299,1714167068061,-500.0,0.00013502,2]
[323699300,1714167068072,-500.0,0.00013511,2]
[323699301,1714167068088,-500.0,0.0001352,2]
[323699302,1714167068098,-1561.5369,0.0001365,2]
[323699303,1714167068107,-1149.92344599,0.00013693,2]
[323699304,1714167068116,-662.82,0.00013697,2]
[323699305,1714167068125,-515.0,0.00013698,2]
[323699306,1714167068134,-846.17,0.00013698,2]
[323699307,1714167068143,-1347.92,0.00013698,2]
[323699308,1714167068153,-150.0,0.00013698,2]
[323699309,1714167068162,-585.11650642,0.00013698,2]
[323699310,1714167068172,-562.11,0.00013698,2]
[323699311,1714167068181,-638.50214431,0.00013698,2]
[323699312,1714167068191,-500.0,0.00013698,2]
[323699313,1714167068201,-309.25,0.00013698,2]
[323699314,1714167068210,-500.0,0.00013698,2]
[323699315,1714167068219,-500.0,0.00013698,2]
[323699316,1714167068228,-500.0,0.00013698,2]
[323699317,1714167068238,-431.06,0.00013698,2]
[323699318,1714167068248,-500.0,0.00013698,2]
[323699319,1714167068259,-500.0,0.00013698,2]
[323699320,1714167068268,-1773.63,0.00013698,2]
[323699321,1714167068277,-1226.85,0.00013698,2]
[323699322,1714167068287,-2547.19,0.00013698,2]
[323699323,1714167068297,-500.0,0.00013698,2]
[323699324,1714167068306,-506.27,0.00013698,2]
[323699325,1714167068315,-593.36,0.00013698,2]
[323699326,1714167068325,-2525.7,0.00013698,2]
[323699327,1714167068333,-339.51,0.00013698,2]
[323699328,1714167068344,-1601.33,0.00013698,2]
[323699329,1714167068353,-500.0,0.00013698,2]
[323699330,1714167068362,-1046.8,0.00013698,2]
[323699331,1714167068372,-2439.87,0.00013698,2]
[323699332,1714167068381,-507.38,0.00013698,2]
[323699333,1714167068391,-910.02,0.00013698,2]
[323699334,1714167068400,-500.0,0.00013698,2]
[323699335,1714167068410,-500.0,0.00013698,2]
[323699336,1714167068420,-1026.19,0.00013698,2]
[323699337,1714167068430,-500.0,0.00013698,2]
[323699338,1714167068442,-936.26,0.00013698,2]
[323699339,1714167068452,-3948.29,0.00013698,2]
[323699340,1714167068462,-500.0,0.00013698,2]
[323699341,1714167068472,-3479.09,0.00013698,2]
[323699342,1714167068482,-511.31,0.00013698,2]
[323699343,1714167068492,-163.45,0.00013698,2]
[323699344,1714167068502,-506.65,0.00013698,2]
[323699345,1714167068513,-401.14,0.00013698,2]
[323699346,1714167068523,-854.81,0.00013698,2]
[323699347,1714167068533,-844.75,0.00013698,2]
[323699348,1714167068544,-500.0,0.00013698,2]
[323699349,1714167068553,-728.65,0.00013698,2]
[323699350,1714167068562,-500.0,0.00013698,2]
[323699351,1714167068571,-2110.77,0.00013698,2]
[323699352,1714167068581,-940.7,0.00013698,2]
[323699353,1714167068590,-328.38,0.00013698,2]
[323699354,1714167068599,-291.38,0.00013698,2]
[323699355,1714167068609,-500.0,0.00013698,2]
[323699356,1714167068619,-3618.21,0.00013698,2]
[323699357,1714167068628,-516.47,0.00013698,2]
[323699358,1714167068637,-500.0,0.00013698,2]
[323699359,1714167068646,-500.0,0.00013698,2]
[323699360,1714167068656,-500.0,0.00013698,2]
[323699361,1714167068666,-500.0,0.00013698,2]
[323699362,1714167068679,-1085.71,0.00013698,2]
[323699363,1714167068688,-500.0,0.00013698,2]
[323699364,1714167068697,-2709.84,0.00013698,2]
[323699365,1714167068707,-500.0,0.00013698,2]
[323699366,1714167068717,-500.0,0.00013698,2]
[323699367,1714167068727,-3874.03,0.00013698,2]
[323699368,1714167068737,-500.0,0.00013698,2]
[323699369,1714167068747,-3510.07,0.00013698,2]
[323699370,1714167068758,-780.74,0.00013698,2]
[323699371,1714167068767,-500.0,0.00013698,2]
[323699372,1714167068778,-500.0,0.00013698,2]
[323699373,1714167068789,-579.45,0.00013698,2]
[323699374,1714167068798,-200.0,0.00013699,2]
[323699375,1714167068808,-200.0,0.00013699,2]
[323699376,1714167068819,-200.0,0.00013699,2]
[323699377,1714167068829,-500.0,0.00013699,2]
[323699378,1714167068839,-250.0,0.00013699,2]
[323699379,1714167068849,-1000.0,0.00013699,2]
[323699380,1714167068858,-2751.0,0.00013699,2]
[323699381,1714167068868,-368.32,0.00013793,2]
[323699382,1714167068878,-3700.602,0.00013798,2]
[323699383,1714167068888,-846.17,0.00013972,2]
[323699384,1714167068897,-1347.92,0.00013972,2]
[323699385,1714167068906,-150.0,0.00013972,2]
[323699386,1714167068916,-562.11,0.00013972,2]
[323699387,1714167068925,-500.0,0.00013972,2]
[323699388,1714167068934,-500.0,0.00013972,2]
[323699389,1714167068944,-500.0,0.00013972,2]
[323699390,1714167068953,-500.0,0.00013972,2]
[323699391,1714167068963,-500.0,0.00013972,2]
[323699392,1714167068973,-500.0,0.00013972,2]
[323699393,1714167068982,-1773.63,0.00013972,2]
[323699394,1714167068991,-1226.85,0.00013972,2]
[323699395,1714167069000,-2547.19,0.00013972,2]
[323699396,1714167069010,-500.0,0.00013972,2]
[323699397,1714167069019,-2525.7,0.00013972,2]
[323699398,1714167069030,-1601.33,0.00013972,2]
[323699399,1714167069040,-238.42,0.00013972,2]
[323699400,1714167069050,-1046.8,0.00013972,2]
[323699401,1714167069060,-2439.87,0.00013972,2]
[323699402,1714167069069,-507.38,0.00013972,2]
[323699403,1714167069079,-910.02,0.00013972,2]
[323699404,1714167069089,-500.0,0.00013972,2]
[323699405,1714167069099,-500.0,0.00013972,2]
[323699406,1714167069110,-1026.19,0.00013972,2]
[323699407,1714167069119,-500.0,0.00013972,2]
[323699408,1714167069129,-936.26,0.00013972,2]
[323699409,1714167069138,-3948.29,0.00013972,2]
[323699410,1714167069148,-500.0,0.00013972,2]
[323699411,1714167069159,-3479.09,0.00013972,2]
[323699412,1714167069168,-506.65,0.00013972,2]
[323699413,1714167069178,-854.81,0.00013972,2]
[323699414,1714167069187,-844.75,0.00013972,2]
[323699415,1714167069197,-500.0,0.00013972,2]
[323699416,1714167069207,-728.65,0.00013972,2]
[323699417,1714167069216,-500.0,0.00013972,2]
[323699418,1714167069226,-2110.77,0.00013972,2]
[323699419,1714167069237,-940.7,0.00013972,2]
[323699420,1714167069247,-433.16,0.00013972,2]
[323699421,1714167069257,-3618.21,0.00013972,2]
[323699422,1714167069266,-500.0,0.00013972,2]
[323699423,1714167069275,-500.0,0.00013972,2]
[323699424,1714167069285,-500.0,0.00013972,2]
[323699425,1714167069296,-500.0,0.00013972,2]
[323699426,1714167069306,-1085.71,0.00013972,2]
[323699427,1714167069316,-500.0,0.00013972,2]
[323699428,1714167069325,-2709.84,0.00013972,2]
[323699429,1714167069334,-500.0,0.00013972,2]
[323699430,1714167069343,-629.53,0.00013972,2]
[323699431,1714167069353,-3874.03,0.00013972,2]
[323699432,1714167069362,-500.0,0.00013972,2]
[323699433,1714167069372,-3510.07,0.00013972,2]
[323699434,1714167069382,-780.74,0.00013972,2]
[323699435,1714167069392,-500.0,0.00013972,2]
[323699436,1714167069401,-500.0,0.00013972,2]
[323699437,1714167069411,-579.45,0.00013972,2]
[323699438,1714167069420,-200.0,0.00014017,2]
[323699439,1714167069430,-846.17,0.00014246,2]
[323699440,1714167069439,-1347.92,0.00014246,2]
[323699441,1714167069449,-150.0,0.00014246,2]
[323699442,1714167069458,-562.11,0.00014246,2]
[323699443,1714167069467,-500.0,0.00014246,2]
[323699444,1714167069477,-580.56,0.00014246,2]
[323699445,1714167069486,-500.0,0.00014246,2]
[323699446,1714167069496,-500.0,0.00014246,2]
[323699447,1714167069507,-319.42,0.00014246,2]
[323699448,1714167069517,-274.12,0.00014246,2]
[323699449,1714167069525,-1773.63,0.00014246,2]
[323699450,1714167069534,-1226.85,0.00014246,2]
[323699451,1714167069544,-2547.19,0.00014246,2]
[323699452,1714167069553,-500.0,0.00014246,2]
[323699453,1714167069563,-2525.7,0.00014246,2]
[323699454,1714167069573,-1601.33,0.00014246,2]
[323699455,1714167069583,-1046.8,0.00014246,2]
[323699456,1714167069592,-2439.87,0.00014246,2]
[323699457,1714167069601,-346.31492895,0.00014246,2]
[323699458,1714167069882,-161.06507105,0.00014246,2]
[323699459,1714167069892,-910.02,0.00014246,2]
[323699460,1714167069901,-398.04,0.00014246,2]
[323699461,1714167069911,-500.0,0.00014246,2]
[323699462,1714167069922,-1026.19,0.00014246,2]
[323699463,1714167069932,-568.33,0.00014246,2]
[323699464,1714167069942,-936.26,0.00014246,2]
[323699465,1714167069951,-3948.29,0.00014246,2]
[323699466,1714167069961,-500.0,0.00014246,2]
[323699467,1714167069971,-3479.09,0.00014246,2]
[323699468,1714167069982,-506.65,0.00014246,2]
[323699469,1714167069992,-854.81,0.00014246,2]
[323699470,1714167070003,-844.75,0.00014246,2]
[323699471,1714167070013,-500.0,0.00014246,2]
[323699472,1714167070023,-728.65,0.00014246,2]
[323699473,1714167070032,-500.0,0.00014246,2]
[323699474,1714167070042,-2110.77,0.00014246,2]
[323699475,1714167070051,-940.7,0.00014246,2]
[323699476,1714167070061,-3618.21,0.00014246,2]
[323699477,1714167070072,-500.0,0.00014246,2]
[323699478,1714167070082,-500.0,0.00014246,2]
[323699479,1714167070094,-500.0,0.00014246,2]
[323699480,1714167070105,-500.0,0.00014246,2]
[323699481,1714167070116,-1085.71,0.00014246,2]
[323699482,1714167070127,-500.0,0.00014246,2]
[323699483,1714167070137,-2709.84,0.00014246,2]
[323699484,1714167070146,-500.0,0.00014246,2]
[323699485,1714167070156,-3874.03,0.00014246,2]
[323699486,1714167070167,-500.0,0.00014246,2]
[323699487,1714167070177,-3510.07,0.00014246,2]
[323699488,1714167070187,-780.74,0.00014246,2]
[323699489,1714167070197,-500.0,0.00014246,2]
[323699490,1714167070207,-500.0,0.00014246,2]
[323699491,1714167070216,-579.45,0.00014246,2]
[323699492,1714167070226,-515.0,0.00014383,2]
[323699493,1714167070236,-846.17,0.0001452,2]
[323699494,1714167070246,-1347.92,0.0001452,2]
[323699495,1714167070255,-150.0,0.0001452,2]
[323699496,1714167070265,-562.11,0.0001452,2]
[323699497,1714167070276,-500.0,0.0001452,2]
[323699498,1714167070286,-500.0,0.0001452,2]
[323699499,1714167070295,-500.0,0.0001452,2]
[323699500,1714167070305,-1773.63,0.0001452,2]
[323699501,1714167070315,-1226.85,0.0001452,2]
[323699502,1714167070325,-2547.19,0.0001452,2]
[323699503,1714167070336,-500.0,0.0001452,2]
[323699504,1714167070345,-2525.7,0.0001452,2]
[323699505,1714167070355,-1601.33,0.0001452,2]
[323699506,1714167070365,-1046.8,0.0001452,2]
[323699507,1714167070375,-2439.87,0.0001452,2]
[323699508,1714167070384,-507.38,0.0001452,2]
[323699509,1714167070394,-910.02,0.0001452,2]
[323699510,1714167070404,-500.0,0.0001452,2]
[323699511,1714167070413,-1026.19,0.0001452,2]
[323699512,1714167070423,-936.26,0.0001452,2]
[323699513,1714167070432,-3948.29,0.0001452,2]
[323699514,1714167070442,-500.0,0.0001452,2]
[323699515,1714167070452,-3479.09,0.0001452,2]
[323699516,1714167070462,-506.65,0.0001452,2]
[323699517,1714167070471,-854.81,0.0001452,2]
[323699518,1714167070481,-844.75,0.0001452,2]
[323699519,1714167070490,-274.26,0.0001452,2]
[323699520,1714167070500,-728.65,0.0001452,2]
[323699521,1714167070510,-500.0,0.0001452,2]
[323699522,1714167070519,-2110.77,0.0001452,2]
[323699523,1714167070529,-940.7,0.0001452,2]
[323699524,1714167070538,-3618.21,0.0001452,2]
[323699525,1714167070548,-500.0,0.0001452,2]
[323699526,1714167070558,-500.0,0.0001452,2]
[323699527,1714167070569,-500.0,0.0001452,2]
[323699528,1714167070579,-500.0,0.0001452,2]
[323699529,1714167070589,-1085.71,0.0001452,2]
[323699530,1714167070599,-500.0,0.0001452,2]
[323699531,1714167070609,-2709.84,0.0001452,2]
[323699532,1714167070619,-500.0,0.0001452,2]
[323699533,1714167070629,-3874.03,0.0001452,2]
[323699534,1714167070639,-500.0,0.0001452,2]
[323699535,1714167070648,-3510.07,0.0001452,2]
[323699536,1714167070658,-780.74,0.0001452,2]
[323699537,1714167070669,-500.0,0.0001452,2]
[323699538,1714167070684,-500.0,0.0001452,2]
[323699539,1714167070693,-579.45,0.0001452,2]
[323699540,1714167070703,-400.0,0.00014611,2]
[323699541,1714167070714,-846.17,0.00014794,2]
[323699542,1714167070724,-1347.92,0.00014794,2]
[323699543,1714167070733,-162.5,0.00014794,2]
[323699544,1714167070743,-562.11,0.00014794,2]
[323699545,1714167070753,-500.0,0.00014794,2]
[323699546,1714167070764,-500.0,0.00014794,2]
[323699547,1714167070774,-500.0,0.00014794,2]
[323699548,1714167070783,-1773.63,0.00014794,2]
[323699549,1714167070793,-1226.85,0.00014794,2]
[323699550,1714167070803,-2547.19,0.00014794,2]
[323699551,1714167070813,-500.0,0.00014794,2]
[323699552,1714167070823,-2525.7,0.00014794,2]
[323699553,1714167070834,-1601.33,0.00014794,2]
[323699554,1714167070846,-1046.8,0.00014794,2]
[323699555,1714167070856,-2439.87,0.00014794,2]
[323699556,1714167070866,-507.38,0.00014794,2]
[323699557,1714167070876,-910.02,0.00014794,2]
[323699558,1714167070886,-500.0,0.00014794,2]
[323699559,1714167070896,-1026.19,0.00014794,2]
[323699560,1714167070906,-936.26,0.00014794,2]
[323699561,1714167070916,-3948.29,0.00014794,2]
[323699562,1714167070926,-500.0,0.00014794,2]
[323699563,1714167070936,-3479.09,0.00014794,2]
[323699564,1714167070946,-506.65,0.00014794,2]
[323699565,1714167070956,-854.81,0.00014794,2]
[323699566,1714167070965,-844.75,0.00014794,2]
[323699567,1714167070975,-728.65,0.00014794,2]
[323699568,1714167070984,-500.0,0.00014794,2]
[323699569,1714167070995,-2110.77,0.00014794,2]
[323699570,1714167071005,-940.7,0.00014794,2]
[323699571,1714167071015,-3618.21,0.00014794,2]
[323699572,1714167071025,-500.0,0.00014794,2]
[323699573,1714167071036,-500.0,0.00014794,2]
[323699574,1714167071047,-500.0,0.00014794,2]
[323699575,1714167071058,-500.0,0.00014794,2]
[323699576,1714167071068,-1085.71,0.00014794,2]
[323699577,1714167071302,-500.0,0.00014794,2]
[323699578,1714167071312,-2709.84,0.00014794,2]
[323699579,1714167071322,-500.0,0.00014794,2]
[323699580,1714167071332,-3874.03,0.00014794,2]
[323699581,1714167071342,-500.0,0.00014794,2]
[323699582,1714167071351,-3510.07,0.00014794,2]
[323699583,1714167071361,-780.74,0.00014794,2]
[323699584,1714167071371,-500.0,0.00014794,2]
[323699585,1714167071380,-500.0,0.00014794,2]
[323699586,1714167071390,-579.45,0.00014794,2]
[323699587,1714167071401,-759.0,0.00014831,2]
[323699588,1714167071411,-200.0,0.00014884,2]
[323699589,1714167071422,-1000.0,0.00014884,2]
[323699590,1714167071431,-200.0,0.00014884,2]
[323699591,1714167071441,-6705.74562591,0.000149,2]
[323699592,1714167071451,-311.56,0.00014982,2]
[323699593,1714167071461,-4471.9826753,0.00015,2]
[323699594,1714167071471,-617.51446249,0.00015,2]